Cogmind - Beta 15 @@@ ROGUE MODE // 2025.08.26 @ 20:05:05 Player: k1ll3rb0t Result: Destroyed by 73-483(j) with Overtuned Pulse Rifle Performance ------------- Evolutions (2) 1000 Regions Visited (7) 1400 Robots Destroyed (101) 505 Value Destroyed (2616) 2616 Prototype IDs (13) 260 Alien Tech Used (0) 0 Bonus (1374) 1374 TOTAL SCORE: 7155 Bonus ------- High Alert Combat Kills 110 Follower Combat Kills 464 Registered with UFD 300 Met Optimus in HQ 500 Cogmind --------- Core Integrity 0/550 Matter 280/300 Energy 224/240 System Corruption 3% Temperature Cool (12) Movement Treading (250) Ox1 Location -8/Scraptown Parts ------- > --- POWER (1) -------- Nuclear Core > --- PROPULSION (4) --- Armored Treads Armored Treads > --- UTILITY (2) ------ High-capacity Storage Unit Authchip [Weapon] > --- WEAPON (4) ------- Advanced EMP Blaster Mace (fused) Heavy Hammer Heavy Hammer > --- INVENTORY (20) --- Armored Treads Advanced Treads Machine Analyzer 0b10 Decoder Chip [Skirmisher] Melee Analysis Suite Hardened Medium Armor Plating Authchip [Device] Improved Trap Extractor (0/6) Improved Trap Extractor (4/6 Blade) Drone Bay (2/2) Drone Bay (2/2) Drone Bay (2/2) Advanced EMP Blaster Improved Datajack CPS Tube (2) Power Sword Makeshift Spear Peak State ------------ > --- POWER ------------ Light Nuclear Core > --- PROPULSION ------- Armored Treads Advanced Treads Advanced Treads Advanced Treads > --- UTILITY ---------- High-capacity Storage Unit Authchip [Weapon] > --- WEAPON ----------- Mace Heavy Hammer Heavy Hammer Makeshift Spear > --- INVENTORY -------- Armored Treads Armored Treads Armored Treads Advanced Treads Advanced Treads Advanced Treads Advanced Treads Machine Analyzer Melee Analysis Suite Hardened Medium Armor Plating Authchip [Device] Improved Trap Extractor Improved Trap Extractor Drone Bay Drone Bay Drone Bay Advanced EMP Blaster Advanced EMP Blaster Improved Datajack Mace [Rating: 37] Favorites ----------- Power Nuclear Core Engine Ion Engine Power Core Nuclear Core Propulsion Advanced Treads Treads Advanced Treads Wheel Armored Wheel Hover Unit Aerolev Unit Utility High-capacity Storage Unit Device Structural Scanner Storage High-capacity Storage Unit Hackware Authchip [Weapon] Protection Hardened Medium Armor Plating Weapon Heavy Hammer Ballistic Gun Assault Rifle Launcher Advanced EMP Blaster Impact Weapon Heavy Hammer Piercing Weapon Makeshift Spear Special Melee Weapon Improved Datajack Build | -11 -10 -9 -9 -8 -8 -8 -8 ------- Run | Yrd Mat Mat Min Mat Sto Rec Scr Slots Evolved 4 | . . 2 . 2 . . . Power . | . . . . . . . . Propulsion 2 | . . . . 2 . . . Utility . | . . . . . . . . Weapon 2 | . . 2 . . . . . Parts Attached 76 | 6 9 9 2 22 21 2 5 Power 13 | 1 2 3 . 3 2 . 2 Engine 9 | 1 2 3 . 2 1 . . Core 4 | . . . . 1 1 . 2 Reactor . | . . . . . . . . Propulsion 29 | 2 2 2 1 12 8 . 2 Treads 15 | 2 . . . 4 7 . 2 Leg . | . . . . . . . . Wheel 13 | . 2 2 1 8 . . . Hover 1 | . . . . . 1 . . Flight . | . . . . . . . . Utility 18 | 1 3 2 . 5 6 1 . Device 5 | . 1 1 . 2 1 . . Storage 5 | 1 2 . . 1 1 . . Processor . | . . . . . . . . Hackware 1 | . . . . . . 1 . Protection 7 | . . 1 . 2 4 . . Artifact . | . . . . . . . . Weapon 16 | 2 2 2 1 2 5 1 1 Energy Gun . | . . . . . . . . Energy Cannon . | . . . . . . . . Ballistic Gun 2 | 2 . . . . . . . Ballistic Cannon . | . . . . . . . . Launcher 3 | . . . . . 2 . 1 Special Weapon . | . . . . . . . . Impact Weapon 9 | . 2 2 1 1 2 1 . Slashing Weapon . | . . . . . . . . Piercing Weapon 1 | . . . . 1 . . . Special Melee Weapon 1 | . . . . . 1 . . Unidentified Prototypes 3 | . . 1 . . 2 . . Corrupted Parts 2 | . . . . 1 . 1 . System Corruption 10 | . . . . 9 . 1 . Parts Lost 25 | . . 4 1 14 1 . 5 Power 4 | . . 1 . 2 . . 1 Propulsion 16 | . . 1 1 10 . . 4 Utility 4 | . . 2 . 1 1 . . Weapon 1 | . . . . 1 . . . Highest Loss Streak 11 | . . 3 1 11 1 . 5 To Critical Strikes . | . . . . . . . . Average Backups 17 | 3 9 13 13 13 18 19 19 Power . | . 1 . 1 . . . . Propulsion 4 | 2 4 3 2 1 3 7 4 Utility 7 | . . 1 1 2 7 8 9 Weapon 4 | . 4 7 8 7 5 3 3 Tool/Special . | . . . . . . . . Unused Backups 49 | . 6 . . 4 10 1 28 Power 4 | . 1 . . . 2 . 1 Propulsion 14 | . 4 . . 1 3 . 6 Utility 20 | . . . . 2 4 1 13 Weapon 8 | . 1 . . . 1 . 6 Tool/Special 3 | . . . . 1 . . 2 Average Slot Usage (%) 98 | . 94 91 88 86 100 100 99 Engine 2 | . 14 11 11 3 5 . . Core 7 | . . . . 5 3 9 9 Treads 30 | . 14 . . 6 35 36 35 Wheel 3 | . 13 22 22 19 . . . Storage 9 | . 14 11 11 9 9 9 9 Hackware 4 | . . . . . . . 9 Protection 3 | . . . . 4 9 8 . Impact Weapon 27 | . 17 43 44 30 26 27 27 Piercing Weapon 7 | . . . . 5 8 8 9 Peak Build Rating 37 | 6 13 18 16 28 36 37 37 Average Rating 31 | 5 9 16 15 20 28 35 36 On Entrance 18 | . 6 13 16 15 28 35 37 Naked Turns . | . . . . . . . . Heaviest Build 67 | 12 32 40 37 41 67 64 57 Greatest Support 88 | 40 40 28 28 86 88 86 86 Greatest Overweight (x) 4 | 2 1 1 1 4 . . 1 Average Overweight (x) . | . . 1 1 1 . . . Largest Inventory Capacity 20 | 8 15 15 15 15 20 20 20 Average Capacity 18 | 7 10 15 15 15 18 20 20 Most Carried 20 | 6 15 15 15 15 20 20 20 Average Carried 18 | 3 9 13 13 13 18 19 19 Final Capacity 20 | 8 15 15 15 15 20 20 20 Final Carried 20 | 6 15 14 15 15 20 20 17 Class Distribution -------------------- 65% | Commander-Mutant 31% | Mutant Dominant Class ---------------- Mutant | -10/Materials Mutant | -9/Materials Mutant | -9/Mines Mutant | -8/Materials Mutant | -8/Storage Commander-Mutant | -8/Recycling Commander-Mutant | -8/Scraptown Resources | -11 -10 -9 -9 -8 -8 -8 -8 ----------- Run | Yrd Mat Mat Min Mat Sto Rec Scr Matter Collected 2072 | 230 300 234 20 508 540 163 77 Remotely . | . . . . . . . . Salvage Created 3577 | . 429 410 102 591 1871 56 118 Parts 168 | . 19 15 3 26 90 . 15 Haulers Intercepted 9 | . 1 1 . 2 5 . . Recyclers Shooed 1 | . 1 . . . . . . Parts Field Recycled . | . . . . . . . . Retrieved Matter . | . . . . . . . . Parts Self-Destructed 13 | . . . . . . . 13 Prevented . | . . . . . . . . Kills | -11 -10 -9 -9 -8 -8 -8 -8 ------- Run | Yrd Mat Mat Min Mat Sto Rec Scr Combat Hostiles Destroyed 74 | . 8 10 3 15 34 1 3 Melee 42 | . 2 5 2 13 17 . 3 Guns 4 | . 4 . . . . . . Cannons 1 | . . . . 1 . . . AOE 9 | . . . . . 9 . . Classes Destroyed 14 | . 5 4 . 2 1 . 2 Worker 8 | . 2 . 3 2 1 . . Builder 3 | . . . . 1 2 . . Hauler 9 | . 1 1 . 2 5 . . Recycler 5 | . . 1 . 2 2 . . Operator 1 | . 1 . . . . . . Watcher 1 | . 1 . . . . . . Swarmer 22 | . . 3 3 11 5 . . Grunt 30 | . 8 5 . . 17 . . Duelist 1 | . . 1 . . . . . Sentry 15 | . . 1 . 2 11 1 . Specialist 2 | . . . . 2 . . . Hunter 1 | . . . . . 1 . . Federalist 1 | . . . . . . . 1 Guru 2 | . . . . . . . 2 Best Kill Streak 10 | . 3 6 5 10 9 1 3 Combat Bots Only 6 | . 2 6 3 6 6 1 3 Max Kills in Single Turn 3 | . 1 1 1 1 3 1 1 Gunslinging . | . . . . . . . . Exploded 3 | . . . . . 3 . . Melee 1 | . 1 1 1 1 1 . 1 Uniques/NPCs Destroyed . | . . . . . . . . Combat | -11 -10 -9 -9 -8 -8 -8 -8 -------- Run | Yrd Mat Mat Min Mat Sto Rec Scr Hostile Shots Fired 636 | . 57 66 21 194 124 9 165 Missed 189 | . 17 22 6 52 42 . 50 Hits 447 | . 40 44 15 142 82 9 115 Melee 14 | . . 6 . . . . 8 Projectile 433 | . 40 38 15 142 82 9 107 Critical Strikes 12 | . 1 1 . 2 4 . 4 Damage Taken 5616 | . 522 592 123 1380 1239 171 1589 Core 782 | . 122 79 20 208 97 15 241 Absorbed by Shields . | . . . . . . . . Regen/Repaired (Parts) 149 | . . . . . 149 . . Core Remaining (%) 75 | 100 51 . 75 . . . . Volleys Fired 38 | . 24 . . . 14 . . Largest 2 | . 2 . . . 1 . . Hottest 40 | . 40 . . . 36 . . Shots Fired 62 | . 48 . . . 14 . . Gun 48 | . 48 . . . . . . Cannon . | . . . . . . . . Launcher 14 | . . . . . 14 . . Special . | . . . . . . . . Kinetic 48 | . 48 . . . . . . Thermal . | . . . . . . . . Explosive 3 | . . . . . 3 . . Electromagnetic 11 | . . . . . 11 . . Robot Hit Streak 7 | . 7 . . . 2 . . Robot Miss Streak 3 | . 3 . . . 2 . . Penetration Max . | . . . . . . . . Secondary Targets . | . . . . . . . . Shots Hit Robots 262 | . 53 39 9 46 84 24 7 Core Hits 90 | . 15 7 2 15 47 . 4 Critical Kills 6 | . 2 2 . . 2 . . Critical Parts Destroyed 20 | . 4 1 1 5 9 . . Critical Strikes 31 | . 6 3 1 6 15 . . Destroy 3 | . 3 . . . . . . Smash 24 | . 3 3 1 5 12 . . Impale 4 | . . . . 1 3 . . Melee Attacks 361 | . 27 58 13 86 119 44 14 Impact 257 | . 27 58 13 78 74 4 3 Slashing . | . . . . . . . . Piercing 84 | . . . . 8 45 20 11 Sneak Attacks 54 | . 5 3 5 11 9 21 . Combat Hostiles 4 | . . . 2 1 . 1 . Follow-up Attacks 71 | . 3 14 1 21 29 1 2 Damage Inflicted 9730 | . 1440 1407 558 2124 3823 195 183 Guns 395 | . 395 . . . . . . Cannons . | . . . . . . . . Explosions 887 | . . . . . 887 . . Melee 8448 | . 1045 1407 558 2124 2936 195 183 Ramming . | . . . . . . . . Kinetic 395 | . 395 . . . . . . Thermal 110 | . . . . . 110 . . Explosive 290 | . . . . . 290 . . Electromagnetic 487 | . . . . . 487 . . Impact 7126 | . 1045 1407 558 1960 2063 39 54 Slashing . | . . . . . . . . Piercing 1322 | . . . . 164 873 156 129 Highest Corruption 12 | . . . . 9 9 12 3 Average Corruption 9 | . . . . 9 9 10 1 Corruption Purged . | . . . . . . . . Corruption Blocked . | . . . . . . . . Effects 146 | . . . . 7 46 92 1 Message Errors 35 | . . . . 2 9 24 . Matter Fused 34 | . . . . 2 11 20 1 Heat Flow Errors 17 | . . . . 1 3 13 . Energy Discharges 17 | . . . . 1 5 11 . Parts Rejected 5 | . . . . . 5 . . Parts Fused 2 | . . . . . 1 1 . Data Loss (minor) 21 | . . . . . 7 14 . Data Loss (major) 6 | . . . . 1 1 4 . Alerts 8 | . . . . . 4 4 . Misdirections 1 | . . . . . . 1 . Overload Shots . | . . . . . . . . Overflow Damage 1774 | . 252 139 200 567 607 9 . Projectiles 23 | . . . . . 23 . . Explosions . | . . . . . . . . Melee 1751 | . 252 139 200 567 584 9 . Knockbacks 39 | . 6 12 3 10 7 . 1 Impact 35 | . 6 11 3 8 6 . 1 Kinetic . | . . . . . . . . Secondary 4 | . . 1 . 2 1 . . Self-Inflicted Damage 9 | . . . . . 9 . . Shots 1 | . . . . . 1 . . Rammed . | . . . . . . . . Targets Rammed . | . . . . . . . . Kicked . | . . . . . . . . Crushed . | . . . . . . . . Highest Temperature 247 | . 20 9 . 182 201 247 29 Average Temperature 76 | . 4 9 . 81 55 94 19 Received Heat Transfer 1878 | . 321 138 . 99 702 63 555 Siege Activations . | . . . . . . . . Martial Activations . | . . . . . . . . Shielding Activations . | . . . . . . . . Robots Disrupted . | . . . . . . . . Combat Hostiles . | . . . . . . . . Robots Corrupted 27 | . 4 5 3 4 10 1 . Combat Hostiles 18 | . 2 5 1 1 8 1 . Parts Fried 33 | . 4 4 4 8 12 1 . Impact Corruptions 74 | . 10 9 7 23 24 1 . Robots Melted . | . . . . . . . . Combat Hostiles . | . . . . . . . . Parts Melted . | . . . . . . . . Heat Transferred 200 | . . . . . 200 . . Parts Sabotaged . | . . . . . . . . Parts Stolen . | . . . . . . . . Parts Stripped . | . . . . . . . . Power Chain Reactions 4 | . . . . . 4 . . Alert | -11 -10 -9 -9 -8 -8 -8 -8 ------- Run | Yrd Mat Mat Min Mat Sto Rec Scr Maximum Alert Level 2 | . . 1 . . 2 1 . Low Security (%) 79 | 100 100 94 100 100 19 97 . Level 1 12 | . . 5 . . 47 2 . Level 2 7 | . . . . . 32 . . Level 3 . | . . . . . . . . Level 4 . | . . . . . . . . Level 5 . | . . . . . . . . High Security . | . . . . . . . . Max Security . | . . . . . . . . Peak Influence 564 | . 97 220 139 192 564 216 . Initial 213 | . . . 79 44 39 213 . Average 121 | . 31 116 118 116 337 34 . Influence Increases 2703 | . 302 476 85 507 1045 219 69 Destroy 0b10 Robot/C 1600 | . 160 200 60 300 680 140 60 Destroy 0b10 Robot/NC 135 | . 25 10 15 35 50 . . Destroy Leader 350 | . 44 42 10 74 180 . . Allied During Kill 55 | . . . . . . 46 9 Trap Triggered on 0b10 10 | . . . . . 10 . . Successful Hack 80 | . 12 12 . 18 18 20 . Disable Machine 30 | . . . . . 30 . . Destroy Structure 53 | . 1 2 . 5 32 13 . Partial Spotted 15 | . . . . . 15 . . Lose Combat Pursuer 375 | . 60 210 . 75 30 . . Influence Decreases 2703 | . 299 275 175 528 590 767 69 Entered New Map 587 | . . 3 125 70 54 335 . Time Decay 1827 | . 299 232 40 318 526 412 . Lost Part 209 | . . 40 10 140 10 . 9 Lost Ally 80 | . . . . . . 20 60 Squads Dispatched 12 | . 2 1 . 1 8 . . Investigation 5 | . . 1 . . 4 . . Extermination . | . . . . . . . . Reinforcement 5 | . 2 . . 1 2 . . Assault 2 | . . . . . 2 . . Garrison . | . . . . . . . . Intercept . | . . . . . . . . Searches Triggered . | . . . . . . . . Construction Impeded . | . . . . . . . . Haulers Reinforced . | . . . . . . . . Active Scanning Responses . | . . . . . . . . Cargo Convoy Interrupts . | . . . . . . . . Stealth | -11 -10 -9 -9 -8 -8 -8 -8 --------- Run | Yrd Mat Mat Min Mat Sto Rec Scr Distress Signals 7 | . 1 2 . 1 3 . . Communications Jammed . | . . . . . . . . Distress Signals . | . . . . . . . . Times Spotted 139 | . 17 21 2 24 45 7 23 Peak Tracking Total 11 | . 3 6 2 9 10 3 11 Tactical Retreats 16 | . 4 7 . 3 2 . . Traps | -11 -10 -9 -9 -8 -8 -8 -8 ------- Run | Yrd Mat Mat Min Mat Sto Rec Scr Traps Triggered 2 | . . 1 . . 1 . . Indirectly . | . . . . . . . . Trap Hack Attempts 15 | . . . . . 15 . . Triggered . | . . . . . . . . Disarmed 2 | . . . . . 2 . . Reprogrammed 8 | . . . . 4 4 . . Reused 1 | . . . . . 1 . . Traps Extracted 4 | . . . . 4 . . . Installed . | . . . . . . . . Triggered 1 | . . . . . 1 . . Most Traps Carried 4 | . . . . 4 4 4 4 Machines | -11 -10 -9 -9 -8 -8 -8 -8 ---------- Run | Yrd Mat Mat Min Mat Sto Rec Scr Machines Disabled 5 | . . . . . 2 . 3 Max in Single Turn 1 | . . . . . 1 . 1 Machines Repaired . | . . . . . . . . Machines Dismantled . | . . . . . . . . Machines Sabotaged . | . . . . . . . . Overloaded Fab Kills . | . . . . . . . . Hacking | -11 -10 -9 -9 -8 -8 -8 -8 --------- Run | Yrd Mat Mat Min Mat Sto Rec Scr Machines Accessed 35 | . 3 4 . 6 12 6 4 Terminals 25 | . 3 3 . 5 8 6 . Fabricators . | . . . . . . . . Repair Stations 2 | . . . . . 2 . . Recycling Units 2 | . . . . 1 1 . . Scanalyzers 1 | . . 1 . . . . . Garrison Access 1 | . . . . . 1 . . Total Hacks 115 | . 5 15 . 14 35 16 30 Successful 67 | . 2 10 . 7 14 4 30 Failed 47 | . 3 5 . 7 21 11 . Catastrophic 14 | . . 2 . 1 7 4 . Database Lockouts 1 | . . . . . . 1 . Manual 27 | . 3 1 . 5 5 13 . Terminals 64 | . 5 8 . 11 24 16 . Fabricators . | . . . . . . . . Repair Stations 7 | . . . . . 7 . . Recycling Units 5 | . . . . 3 2 . . Scanalyzers 7 | . . 7 . . . . . Garrison Access 2 | . . . . . 2 . . Terminal Hacks 56 | . 2 4 . 6 10 4 30 Record 31 | . . . . . . 1 30 Part Schematic 4 | . 1 . . 1 . 2 . Robot Analysis 1 | . . 1 . . . . . Prototype ID Bank 2 | . . 1 . 1 . . . Open Door 3 | . . . . . 3 . . Branch Access Points 1 | . . . . 1 . . . Alert Level 2 | . . . . . 1 1 . Locate Traps 4 | . . 1 . 1 2 . . Reprogram Traps 2 | . . . . 1 1 . . Hauler Manifests 3 | . 1 1 . . 1 . . Registered Components 2 | . . . . 1 1 . . Zone Layout 1 | . . . . . 1 . . Fabricator Hacks . | . . . . . . . . Repair Station Hacks 4 | . . . . . 4 . . Scan Component 3 | . . . . . 3 . . Repair 1 | . . . . . 1 . . Recycling Unit Hacks . | . . . . . . . . Scanalyzer 6 | . . 6 . . . . . Insert Component 3 | . . 3 . . . . . Analyze 3 | . . 3 . . . . . Garrison Access Hacks . | . . . . . . . . Unauthorized Hacks 1 | . . . . 1 . . . Terminals . | . . . . . . . . Fabricators . | . . . . . . . . Repair Stations . | . . . . . . . . Recycling Units 1 | . . . . 1 . . . Mask 1 | . . . . 1 . . . Scanalyzers . | . . . . . . . . Garrison Access . | . . . . . . . . Data Cores Recovered . | . . . . . . . . Used . | . . . . . . . . Hacking Detections 26 | . 2 3 . 4 11 6 . Full Trace Events 6 | . . . . . 3 3 . Feedback Events 1 | . . . . . . 1 . Corruption 1 | . . . . . . 1 . Feedback Blocked . | . . . . . . . . Robot Schematics Acquired . | . . . . . . . . Robots Built . | . . . . . . . . Authchips . | . . . . . . . . Time . | . . . . . . . . Total Robot Build Rating . | . . . . . . . . Part Schematics Acquired 7 | . 1 3 . 1 . 2 . Parts Built . | . . . . . . . . Authchips . | . . . . . . . . Time . | . . . . . . . . Total Part Build Rating . | . . . . . . . . Parts Repaired 1 | . . . . . 1 . . Time 38 | . . . . . 38 . . Parts Recycled . | . . . . . . . . Recycled Matter . | . . . . . . . . Retrieved Matter . | . . . . . . . . Retrieved Components . | . . . . . . . . Parts Scanalyzed 3 | . . 3 . . . . . Part Schematics Acquired 3 | . . 3 . . . . . Parts Damaged . | . . . . . . . . Bothacking | -11 -10 -9 -9 -8 -8 -8 -8 ------------ Run | Yrd Mat Mat Min Mat Sto Rec Scr Used RIF Installer . | . . . . . . . . Robots Hacked . | . . . . . . . . Non-combat . | . . . . . . . . Combat . | . . . . . . . . Robot Hacks Applied . | . . . . . . . . Relay Couplers Released . | . . . . . . . . Fabnet Peak Effective % . | . . . . . . . . Robots Rewired 10 | . . . . . . 10 . Allies Hacked . | . . . . . . . . Hacks Repelled . | . . . . . . . . Allies | -11 -10 -9 -9 -8 -8 -8 -8 -------- Run | Yrd Mat Mat Min Mat Sto Rec Scr Total Allies 13 | . . . . . 2 10 1 Largest Group 12 | . . . . . 2 11 12 Highest-Rated Group 264 | . . . . . 62 209 264 Highest-Rated Ally 54 | . . . . . 31 31 54 Total Orders 19 | . . . . . . 4 15 STAY 12 | . . . . . . . 12 FOLLOW 4 | . . . . . . 2 2 PICKUP 3 | . . . . . . 2 1 Ally Attacks 96 | . . . . . . 25 71 Total Damage 1445 | . . . . . . 461 984 Kills 15 | . . . . . . 6 9 Allies Corrupted . | . . . . . . . . Allies Melted 3 | . . . . . . . 3 Intel | -11 -10 -9 -9 -8 -8 -8 -8 ------- Run | Yrd Mat Mat Min Mat Sto Rec Scr Active Infowar (turns) 687 | . 554 133 . . . . . Structural 602 | . 554 48 . . . . . Seismic 85 | . . 85 . . . . . Robot Analysis Total 1 | . . 1 . . . . . Derelict Logs Recovered . | . . . . . . . . Drone Launches . | . . . . . . . . Drone Recoveries . | . . . . . . . . Exploration | -11 -10 -9 -9 -8 -8 -8 -8 ------------- Run | Yrd Mat Mat Min Mat Sto Rec Scr Turns Passed 11903 | 78 823 561 90 711 1466 2621 5553 Spaces Moved 6921 | 41 518 406 49 400 639 1571 3297 Core 4 | 4 . . . . . . . Treads 5784 | 37 197 . . 43 639 1571 3297 Legs . | . . . . . . . . Wheels 1133 | . 321 406 49 357 . . . Hover . | . . . . . . . . Flight . | . . . . . . . . Fastest Speed 50 | 50 90 105 105 90 145 151 151 Average Speed 143 | 154 121 105 109 114 150 151 151 Slowest Speed 250 | 160 160 110 110 240 152 151 250 Overloaded Moves . | . . . . . . . . Propulsion Burnouts . | . . . . . . . . Robots Hopped . | . . . . . . . . Potential Cave-ins . | . . . . . . . . Cave-ins Triggered . | . . . . . . . . Exploration Rate (%) 53 | 4 79 24 15 34 76 99 93 Regions Visited 7 Branch Regions 4 Pre-discovered Areas . | . . . . . . . . Known Exits Taken 1 | . . . . 1 . . . Unknown Exits Taken 6 | 1 1 1 1 . 1 1 . Scrap Searched 6 | . . . . . . . 6 Spaces Dug 23 | . 1 2 . 5 2 13 . Terrain Destroyed 54 | . 1 2 . 5 33 13 . Melee 23 | . 1 2 . 5 2 13 . Projectile . | . . . . . . . . AOE 31 | . . . . . 31 . . Terrain Rammed . | . . . . . . . . Walls Destroyed . | . . . . . . . . Machines Disabled . | . . . . . . . . Actions | -11 -10 -9 -9 -8 -8 -8 -8 --------- Run | Yrd Mat Mat Min Mat Sto Rec Scr Total 8431 | 53 625 466 66 548 1009 1796 3868 Wait 938 | . 20 10 2 47 176 175 508 Move 6914 | 40 517 405 48 399 638 1570 3297 Hop . | . . . . . . . . Pick Up 97 | 7 16 4 3 16 25 3 23 Fast Attach 32 | 5 6 2 . 9 10 . . Attach 22 | 1 . 5 1 9 3 . 3 Detach . | . . . . . . . . Swap 40 | . 3 2 1 6 22 4 2 Drop 85 | . 15 2 1 10 31 3 23 Fire 38 | . 24 . . . 14 . . Melee 249 | . 24 36 10 52 75 41 11 Ram . | . . . . . . . . Kick . | . . . . . . . . Crush . | . . . . . . . . Escape Stasis . | . . . . . . . . Rewire 1 | . . . . . . . 1 Trap 15 | . . . . . 15 . . Miscellaneous . | . . . . . . . . Route ------- -11/Scrapyard -10/Materials (discovered 3 exits: *Mat x2 / [*Min]) -9/Materials -9/Mines -8/Materials (discovered 3 exits: [*Fac] / *Sto x2) -8/Storage (discovered 2 exits: [*Fac] / *Rec) -8/Recycling (discovered 2 exits: [*Fac] / *Scr) -8/Scraptown (discovered 2 exits: [*Fac x2]) History --------- Turn | Location | Event 28 | -11/Scrapyard | Discovered new exit (range 15) 79 | -11/Scrapyard | Entered Materials 80 | -10/Materials | Met a group of wandering Federalists 314 | -10/Materials | Build established: Mutant 487 | -10/Materials | Discovered new exit (range 15) 570 | -10/Materials | Discovered new exit (range 9) 638 | -10/Materials | Discovered new exit (range 4) 902 | -10/Materials | Entered another Materials area 902 | -9/Materials | Evolved 2 slots: Weapon x2 926 | -9/Materials | Discovered new exit (range 14) 1129 | -9/Materials | Lost 3 parts (1p1n1u) 1463 | -9/Materials | Entered Mines 1464 | -9/Mines | Assembled infested the area 1476 | -9/Mines | Met a Derelict bent on vengeance 1521 | -9/Mines | A weapon hastily lodged in a ceiling crevice suddenly fell to the ground 1546 | -9/Mines | Discovered new exit (range 7) 1553 | -9/Mines | Entered Materials 1553 | -8/Materials | Evolved 2 slots: Propulsion x2 1582 | -8/Materials | Identified exit to Storage 1852 | -8/Materials | Lost 11 parts (2p7n1u1w) 2088 | -8/Materials | Discovered new exit (range 4) 2264 | -8/Materials | Entered Storage 2995 | -8/Storage | Repaired Adv. Treads 3262 | -8/Storage | Discovered new exit (range 7) 3460 | -8/Storage | Core integrity fell below 50% 3683 | -8/Storage | Met a pair of Derelict thieves 3724 | -8/Storage | Used back door to open Recycling access 3724 | -8/Storage | Discovered new exit (range 5) 3730 | -8/Storage | Entered Recycling 3730 | -8/Recycling | Accompanied by 2 allies 3902 | -8/Recycling | System corruption reached 10% 4231 | -8/Recycling | Build established: Commander-Mutant 4287 | -8/Recycling | Discovered new exit (range 16) 6140 | -8/Recycling | Scanned before Scraplab entrance 6161 | -8/Recycling | Entered Scraplab 6173 | -8/Recycling | Discovered new exit (range 2) 6351 | -8/Recycling | Entered Scraptown 6351 | -8/Scraptown | Accompanied by 11 allies 6351 | -8/Scraptown | System corruption cleaned by C-Scrubber 6518 | -8/Scraptown | Visited UFD Registry 6518 | -8/Scraptown | Registered with UFD as "Autonuts" 6530 | -8/Scraptown | Visited Awakened 6573 | -8/Scraptown | Visited Cyclists 6589 | -8/Scraptown | Entered Cyclist Reading Room 6661 | -8/Scraptown | Visited Cave Peace 6693 | -8/Scraptown | Visited SPCMW 6762 | -8/Scraptown | Discovered new exit (range 11) 7045 | -8/Scraptown | Visited TADAMA 7079 | -8/Scraptown | Visited Assassins FH 7386 | -8/Scraptown | Visited Infowarlord's Domain 7413 | -8/Scraptown | Visited Abandonware Association 7445 | -8/Scraptown | Learned abandonware demo "OVRCLOCK.EXE" 7458 | -8/Scraptown | Learned abandonware demo "REPAIR.EXE" 7507 | -8/Scraptown | Visited A0-MCA Data Center 7516 | -8/Scraptown | Given a B+ rating by A0-MCA 7547 | -8/Scraptown | Visited Derelict Rescue Squad 7596 | -8/Scraptown | Visited DA-N13 Charitable Foundation 7611 | -8/Scraptown | Found DCF Scrap (30 items) 7653 | -8/Scraptown | Visited Scrap Suit Storage 7968 | -8/Scraptown | Visited Botcube Research 8002 | -8/Scraptown | Visited Science Testing Area 8041 | -8/Scraptown | Visited Observation Area 8242 | -8/Scraptown | Found Botcube 8329 | -8/Scraptown | Discovered new exit (range 5) 8701 | -8/Scraptown | Found Scrap Suit 9863 | -8/Scraptown | Visited LU-1G1's Boring Crew 10164 | -8/Scraptown | Visited Spacefarers 10509 | -8/Scraptown | Botcube activated 10525 | -8/Scraptown | Botcube completed mutation into treaded form, armed with 1 gun. 11362 | -8/Scraptown | Met Optimus 11362 | -8/Scraptown | Accepted into 0bPrime 11762 | -8/Scraptown | Civil war broke out across Scraptown 11877 | -8/Scraptown | Core integrity fell below 20% 11892 | -8/Scraptown | Lost 10 allies 11897 | -8/Scraptown | Optimus destroyed in the chaos of civil war 11904 | -8/Scraptown | Destroyed by 73-483(j) with Overtuned Pulse Rifle Last Messages --------------- 11882_ Penetrated by Bolt. 11884_ Acquired 18 matter. 11886_ Bolt penetrates Machine. 11889_ Adv. Treads destroyed. 11890_ Machine disabled. 11893_ FQ-K8B(j) misfires. 11893_ FL-LUF(j) destroyed. 11895_ Arm. Treads destroyed. 11896_ Adv. Treads destroyed. 11896_ Critical hit (Burn: +50). 11896_ 76-4OJ(j) destroyed. 11897_ ANNOUNCEMENT: The traitor Optimus has been dealt with. Put down any remaining collaborators. 11900_ Adv. Treads destroyed. 11901_ Critical hit (Impale). 11901_ Penetrated by Bolt. 11902_ Bolt penetrates 2L-Z98(z). 11904_ Penetrated by Bolt. [Achievement: I Think I Know What's Going On] Map ----- +----------------------------------------------------+ | ?# #??????????? | | ?####################### ###########??????????? | | ???????????????????????## ##????????????????????? | | ????????????????????????# #?????????????????????? | | ????????????????#######?# ############??????????? | | ??###########?#"""""""""# ## # # #??????????? | | ??#"""""""""#?#"""""""""# ## # """ # #??????????? | | ??# " " " #?#"""""""""# ## # "#" # #??????????? | | ??# #?#"""""""""# ## # """ # #??????????? | | ??# "# #" #?#""" """# ## #??????????? | | ??# "#X#" #?#"""! """#==## ####### #??????????? | | ??# "###" #?#""" "!"# ## # # #??????????? | | ??# """"" #?#"""" """# ## # # #??????????? | | ??# #?#""" """# ## # # #??????????? | | ??# #?#" # %##%* #??????????? | | ??##### #####?##### ##### ##%#########??????????? | | ####### ########### ##### !##!###############????? | | """"""" """"""""""" """"" %!"%"## """"""""#????? | | =% %= ! %h"## " " " "#????? | | * [!!x % [ ## ""#????? | | ==%!! *=["## & &"#????? | | =[%! gj!"##! * &"#????? | | = [!=%! &"#????? | | """"""""""""""""""""""""" !%## " " " "#????? | | """"""""""""""""""""""" j*"## """"""""#????? | | ##### ################" @z "##############????? | | ##????????#""xx p "#########?????????? | | X"#????????#"" j "## = #?????????? | | "" "" ##????????#"" h "## [%= #?????????? | | "" "" X"#??????###"" != "## = ] #?????????? | | " " #########[# " [%! "##====###?????????? | | "" = !%!![[%* [*%!]![ ###?????????? | | "" [%! [= %=!! ![*;#!! ![*#?????????? | | " ########" # %[ =%"##* %! #?????????? | | "" "" ""#?????#### =* !!"##*==*!*#?????????? | | "" "" ##???????#" ! "#############?????? | | X"#???????## [%! !"## #"""""#""#?????? | | ##????????# = [="## !!! !#?????? | | ##### ################!=% !!%=## #?????? | | """""""""""""""""" ""![! / !!!"## #?????? | | """"""""""""""" "" %!=%" =%=%= X" #?????? | | ![=%*== !!## ##"#?????? | | =!![* "## !!! #????????? | | = =! ## #"""""#????????? | | *% !% ##########????????? | | /=%= #????????????????? | | """""""""%[""""""""""!" " " ##????????????????? | | ######### ########### ###### #?????????????????? | | #?# ## "# #?????????????????? | | ""#?# ##""" "# #?????????????????? | +----------------------------------------------------+ Best States ------------- Heat Dissipation 45 Energy Generation 14 Energy Capacity 275 Matter Stores 300 Matter Capacity 300 Sight Range 16 Terrain Scan Density 10 Armor Coverage 225 Evasion (%) 42 Recoil Reduction 4 Authchip Count 2 Trap Extractor Capacity 6 Item Schematics ----------------- Huge Storage Unit | -10/Materials | Hacked Arm. Wheel | -9/Materials | Scanalyzed Grenade Launcher | -9/Materials | Scanalyzed Rocket Launcher | -9/Materials | Scanalyzed Actuator Array | -8/Materials | Hacked Katana | -8/Recycling | Hacked Arm. Treads | -8/Recycling | Hacked Robot Schematics ------------------ None Fabricated ------------ Nothing Repaired ---------- Adv. Treads | 12% | -8/Storage Alien Tech Used ----------------- None Achievements -------------- I Think I Know What's Going On Challenges ------------ None Game ------ Seed NetworkedEtherialMapper Manual? 0 Play Time 01:55:58 Cumulative 124.8 hours Start 2025.08.26 @ 18:00:46 End 2025.08.26 @ 20:05:05 Sessions 1 Manual Loads 0 Difficulty Rogue Special Mode None Game No. 45 Rogue 45 Adventurer 0 Explorer 0 Win Type - Total 2 Types 2/0/0/0/0/0/0/0/0/0 Lore% 50 Gallery% 54 Achievement% 46 Wizard Run 0 Options --------- Layout 1 ASCII 0 Keyboard 0 Movement Mouse Keybinds 0 Fullscreen 1 Font 32/SmallcapsGlow Map View 50x35 Zoom Use 0% Tactical HUD 1 Map Filters NONE Filters NONE Steam 1 RUN: 3b957f83-f3ba-40fd-bd6e-94c72d0b668f